[Event "Early-Titled-Tuesday-Blitz-January-30-2024"]
[Site "Chess.com"]
[Date "2024.01.30"]
[Round "10"]
[White "FabianoCaruana"]
[Black "JimDiGrease"]
[Result "0-1"]
[WhiteElo "3060"]
[BlackElo "2973"]
[TimeControl "180+1"]
[EndTime "10:01:54 PST"]
[Termination "JimDiGrease won on time"]

1. e4 {[%clk 0:03:00.9]} 1... c5 {[%clk 0:03:00.1]} 2. Nf3 {[%clk 0:03:01.2]}
2... e6 {[%clk 0:03:00.5]} 3. d4 {[%clk 0:03:01]} 3... cxd4 {[%clk 0:03:01.4]}
4. Nxd4 {[%clk 0:03:01.8]} 4... Nf6 {[%clk 0:03:02]} 5. Nc3 {[%clk 0:03:02]}
5... Nc6 {[%clk 0:03:02.5]} 6. a3 {[%clk 0:03:00.7]} 6... d6 {[%clk 0:03:00.9]}
7. Be3 {[%clk 0:03:00.1]} 7... Be7 {[%clk 0:03:00.7]} 8. Qe2 {[%clk 0:03:00.6]}
8... e5 {[%clk 0:02:52.2]} 9. Nb3 {[%clk 0:02:57.6]} 9... Ng4 {[%clk 0:02:52.5]}
10. O-O-O {[%clk 0:02:54.8]} 10... Nxe3 {[%clk 0:02:50]} 11. fxe3 {[%clk
0:02:55.7]} 11... O-O {[%clk 0:02:48.7]} 12. Kb1 {[%clk 0:02:54.8]} 12... Rb8
{[%clk 0:02:44.1]} 13. Qe1 {[%clk 0:02:47.1]} 13... a6 {[%clk 0:02:27.9]} 14.
Nd5 {[%clk 0:02:34.1]} 14... b5 {[%clk 0:02:26.7]} 15. h4 {[%clk 0:02:32.9]}
15... Be6 {[%clk 0:02:23.7]} 16. g3 {[%clk 0:02:30.6]} 16... a5 {[%clk
0:02:11.7]} 17. c3 {[%clk 0:02:21.4]} 17... Qd7 {[%clk 0:01:37.6]} 18. Be2
{[%clk 0:02:20.2]} 18... Qa7 {[%clk 0:01:35.8]} 19. Rc1 {[%clk 0:01:52.9]} 19...
Rfc8 {[%clk 0:01:32.6]} 20. Qd2 {[%clk 0:01:41.1]} 20... Bf8 {[%clk 0:01:05]}
21. Qd3 {[%clk 0:01:32.8]} 21... b4 {[%clk 0:00:59.2]} 22. axb4 {[%clk
0:01:14.8]} 22... axb4 {[%clk 0:00:58.6]} 23. Qa6 {[%clk 0:01:14.2]} 23... Qd7
{[%clk 0:00:33.9]} 24. Bb5 {[%clk 0:01:08.1]} 24... Rxb5 {[%clk 0:00:20.2]} 25.
Qxb5 {[%clk 0:01:07.2]} 25... Rb8 {[%clk 0:00:20.8]} 26. Qa4 {[%clk 0:00:45.7]}
26... Qb7 {[%clk 0:00:20.7]} 27. c4 {[%clk 0:00:40.1]} 27... Bd7 {[%clk
0:00:13.6]} 28. Rhd1 {[%clk 0:00:10.5]} 28... Nd4 {[%clk 0:00:13.4]} 29. Qa2
{[%clk 0:00:09.8]} 29... Ra8 {[%clk 0:00:08.5]} 30. exd4 {[%clk 0:00:09.8]}
30... Rxa2 {[%clk 0:00:08.2]} 31. Kxa2 {[%clk 0:00:10.7]} 31... exd4 {[%clk
0:00:05.9]} 32. Rxd4 {[%clk 0:00:08.5]} 32... Ba4 {[%clk 0:00:05.2]} 33. Rd3
{[%clk 0:00:08.2]} 33... Qa7 {[%clk 0:00:04.5]} 34. Kb1 {[%clk 0:00:08.5]} 34...
g6 {[%clk 0:00:04.6]} 35. Nd4 {[%clk 0:00:08.2]} 35... Bg7 {[%clk 0:00:04.2]}
36. b3 {[%clk 0:00:03.1]} 36... Bxd4 {[%clk 0:00:03.4]} 37. bxa4 {[%clk
0:00:03.3]} 37... Be5 {[%clk 0:00:04.1]} 38. Rd2 {[%clk 0:00:01.2]} 38... Qxa4
{[%clk 0:00:04.2]} 39. c5 {[%clk 0:00:01.1]} 39... Qb3+ {[%clk 0:00:04.6]} 0-1

[Event "Early-Titled-Tuesday-Blitz-January-30-2024"]
[Site "Chess.com"]
[Date "2024.01.30"]
[Round "10"]
[White "bazar-wokzal"]
[Black "Szparu"]
[Result "0-1"]
[WhiteElo "2599"]
[BlackElo "2765"]
[TimeControl "180+1"]
[EndTime "10:01:55 PST"]
[Termination "Szparu won by resignation"]

1. e4 {[%clk 0:03:00.9]} 1... e6 {[%clk 0:03:00]} 2. d4 {[%clk 0:02:58.1]} 2...
d5 {[%clk 0:03:00.2]} 3. exd5 {[%clk 0:02:58.6]} 3... exd5 {[%clk 0:03:00.5]} 4.
Nf3 {[%clk 0:02:59.1]} 4... Nf6 {[%clk 0:03:01]} 5. c4 {[%clk 0:02:59.2]} 5...
Bb4+ {[%clk 0:03:00.5]} 6. Nc3 {[%clk 0:02:59]} 6... O-O {[%clk 0:03:00.4]} 7.
Bd3 {[%clk 0:02:59.4]} 7... dxc4 {[%clk 0:02:58.3]} 8. Bxc4 {[%clk 0:02:59.4]}
8... Nc6 {[%clk 0:02:57.6]} 9. O-O {[%clk 0:02:58.8]} 9... Bg4 {[%clk
0:02:55.3]} 10. Bg5 {[%clk 0:02:58.1]} 10... Bxf3 {[%clk 0:02:31.2]} 11. Qxf3
{[%clk 0:02:57.5]} 11... Qxd4 {[%clk 0:02:31.3]} 12. Bxf6 {[%clk 0:02:56.8]}
12... Qxc4 {[%clk 0:02:04.6]} 13. Qg3 {[%clk 0:02:52.3]} 13... g6 {[%clk
0:02:04.9]} 14. Rad1 {[%clk 0:02:36.8]} 14... Rfe8 {[%clk 0:01:54.4]} 15. Nd5
{[%clk 0:02:30.6]} 15... Bd6 {[%clk 0:01:54.5]} 16. Qh3 {[%clk 0:02:25.5]} 16...
Nb4 {[%clk 0:01:32.9]} 17. Rd4 {[%clk 0:02:05.2]} 17... Qxd5 {[%clk 0:01:30.8]}
18. Rxd5 {[%clk 0:02:03.1]} 18... Nxd5 {[%clk 0:01:31.7]} 19. Bd4 {[%clk
0:01:57.2]} 19... Nf4 {[%clk 0:01:31]} 20. Qh4 {[%clk 0:01:45.2]} 20... Re4
{[%clk 0:01:25.3]} 21. Kh1 {[%clk 0:01:32]} 21... Rxd4 {[%clk 0:01:24.3]} 22. g3
{[%clk 0:01:23.7]} 22... Ne6 {[%clk 0:01:23.3]} 23. Qf6 {[%clk 0:01:23.8]} 23...
Bf8 {[%clk 0:01:21.1]} 24. Re1 {[%clk 0:01:17.2]} 24... Rad8 {[%clk 0:01:05.1]}
25. Kg2 {[%clk 0:01:12.4]} 25... Bg7 {[%clk 0:01:03.8]} 26. Qf3 {[%clk 0:01:12]}
26... c6 {[%clk 0:01:02.7]} 27. Qb3 {[%clk 0:01:04.6]} 27... Nc5 {[%clk
0:00:50.5]} 28. Qa3 {[%clk 0:01:01.2]} 28... Nd3 {[%clk 0:00:24.2]} 29. Re3
{[%clk 0:00:49.9]} 29... a6 {[%clk 0:00:24.9]} 30. h4 {[%clk 0:00:46.6]} 30...
h5 {[%clk 0:00:24.8]} 31. Qa5 {[%clk 0:00:36.4]} 31... R4d7 {[%clk 0:00:23.7]}
32. b3 {[%clk 0:00:30.8]} 32... Nxf2 {[%clk 0:00:23.1]} 33. Kxf2 {[%clk
0:00:27.2]} 33... Bd4 {[%clk 0:00:23.7]} 34. Kf3 {[%clk 0:00:25.5]} 34... Bxe3
{[%clk 0:00:24.1]} 35. Kxe3 {[%clk 0:00:25.7]} 35... Re8+ {[%clk 0:00:24.7]} 36.
Kf2 {[%clk 0:00:21.9]} 36... Re4 {[%clk 0:00:22.1]} 37. Qc3 {[%clk 0:00:17.2]}
37... Rde7 {[%clk 0:00:20.9]} 38. Kg2 {[%clk 0:00:16.6]} 38... Re2+ {[%clk
0:00:19.8]} 39. Kh3 {[%clk 0:00:17]} 39... Rxa2 {[%clk 0:00:20]} 40. g4 {[%clk
0:00:13]} 40... hxg4+ {[%clk 0:00:19.3]} 41. Kxg4 {[%clk 0:00:13.1]} 41... Rg2+
{[%clk 0:00:20.1]} 42. Kf4 {[%clk 0:00:12.6]} 42... Rge2 {[%clk 0:00:20.7]} 43.
h5 {[%clk 0:00:09.6]} 43... R2e4+ {[%clk 0:00:20.9]} 44. Kg5 {[%clk 0:00:10]}
44... R4e5+ {[%clk 0:00:19.4]} 45. Kf4 {[%clk 0:00:09.3]} 45... Rxh5 {[%clk
0:00:19.5]} 46. Qb4 {[%clk 0:00:07.9]} 46... Rh4+ {[%clk 0:00:19.3]} 0-1

[Event "Early-Titled-Tuesday-Blitz-January-30-2024"]
[Site "Chess.com"]
[Date "2024.01.30"]
[Round "10"]
[White "blitzking1729"]
[Black "themind1hunter"]
[Result "1-0"]
[WhiteElo "2701"]
[BlackElo "2539"]
[TimeControl "180+1"]
[EndTime "10:01:55 PST"]
[Termination "blitzking1729 won on time"]

1. c4 {[%clk 0:02:58.6]} 1... e6 {[%clk 0:02:57.3]} 2. Nc3 {[%clk 0:02:58.8]}
2... Bb4 {[%clk 0:02:51.9]} 3. Qc2 {[%clk 0:02:57.9]} 3... Nf6 {[%clk
0:02:49.2]} 4. Nf3 {[%clk 0:02:56.8]} 4... c5 {[%clk 0:02:48.1]} 5. a3 {[%clk
0:02:55.8]} 5... Ba5 {[%clk 0:02:47.1]} 6. e3 {[%clk 0:02:52.7]} 6... O-O {[%clk
0:02:45.5]} 7. Rb1 {[%clk 0:02:51.2]} 7... Nc6 {[%clk 0:02:44.7]} 8. d3 {[%clk
0:02:48.5]} 8... d5 {[%clk 0:02:44.2]} 9. cxd5 {[%clk 0:02:48.5]} 9... exd5
{[%clk 0:02:43.9]} 10. Bd2 {[%clk 0:02:46.1]} 10... d4 {[%clk 0:02:42.2]} 11.
exd4 {[%clk 0:02:44.5]} 11... Nxd4 {[%clk 0:02:21.8]} 12. Nxd4 {[%clk 0:02:44]}
12... cxd4 {[%clk 0:02:22.4]} 13. Ne4 {[%clk 0:02:44]} 13... Bxd2+ {[%clk
0:02:13.1]} 14. Qxd2 {[%clk 0:02:44.7]} 14... Re8 {[%clk 0:02:11.4]} 15. Be2
{[%clk 0:02:42.5]} 15... Nxe4 {[%clk 0:01:34.5]} 16. dxe4 {[%clk 0:02:42.6]}
16... Rxe4 {[%clk 0:01:35.4]} 17. O-O {[%clk 0:02:42.6]} 17... Bf5 {[%clk
0:01:25.1]} 18. Rbd1 {[%clk 0:02:37.5]} 18... Bg6 {[%clk 0:00:51.7]} 19. Bf3
{[%clk 0:02:36.5]} 19... Re6 {[%clk 0:00:38.6]} 20. Bxb7 {[%clk 0:02:34.7]}
20... Rb8 {[%clk 0:00:37.9]} 21. Qxd4 {[%clk 0:02:33.3]} 21... Qxd4 {[%clk
0:00:37]} 22. Rxd4 {[%clk 0:02:34.2]} 22... Rb6 {[%clk 0:00:36.5]} 23. Rfd1
{[%clk 0:02:12.3]} 23... h5 {[%clk 0:00:30]} 24. Bf3 {[%clk 0:01:58.7]} 24...
Rxb2 {[%clk 0:00:28.9]} 25. h4 {[%clk 0:01:54.4]} 25... Ra2 {[%clk 0:00:23.9]}
26. Ra4 {[%clk 0:01:43]} 26... Rb3 {[%clk 0:00:21.9]} 27. Rd8+ {[%clk
0:01:35.7]} 27... Kh7 {[%clk 0:00:21.7]} 28. Rc4 {[%clk 0:01:28.6]} 28... Bf5
{[%clk 0:00:16.7]} 29. Bxh5 {[%clk 0:01:17.7]} 29... Rb1+ {[%clk 0:00:14.7]} 30.
Kh2 {[%clk 0:01:17.7]} 30... Rxf2 {[%clk 0:00:15.4]} 31. Bxf7 {[%clk 0:01:13.1]}
31... Rbb2 {[%clk 0:00:06.4]} 32. Bd5 {[%clk 0:01:10.4]} 32... Be6 {[%clk
0:00:03.4]} 33. Be4+ {[%clk 0:00:58.8]} 33... Bf5 {[%clk 0:00:03.9]} 34. Bd5
{[%clk 0:00:53.5]} 34... Be6 {[%clk 0:00:04]} 35. Be4+ {[%clk 0:00:20.8]} 35...
Bf5 {[%clk 0:00:04.1]} 36. Bxf5+ {[%clk 0:00:20.6]} 36... Rxf5 {[%clk
0:00:03.9]} 37. Rd7 {[%clk 0:00:20.8]} 37... Rff2 {[%clk 0:00:03.6]} 38. Rg4
{[%clk 0:00:20.3]} 38... Kh6 {[%clk 0:00:03]} 39. Rdxg7 {[%clk 0:00:18.4]} 39...
a5 {[%clk 0:00:02]} 40. Kh3 {[%clk 0:00:18.3]} 1-0

[Event "Early-Titled-Tuesday-Blitz-January-30-2024"]
[Site "Chess.com"]
[Date "2024.01.30"]
[Round "10"]
[White "ViIIagra"]
[Black "scarabee43"]
[Result "0-1"]
[WhiteElo "2964"]
[BlackElo "2856"]
[TimeControl "180+1"]
[EndTime "10:01:57 PST"]
[Termination "scarabee43 won on time"]

1. Nc3 {[%clk 0:03:00.9]} 1... e5 {[%clk 0:02:58.2]} 2. d4 {[%clk 0:02:58.6]}
2... exd4 {[%clk 0:02:57.8]} 3. Qxd4 {[%clk 0:02:59]} 3... Nc6 {[%clk 0:02:58]}
4. Qa4 {[%clk 0:02:59.6]} 4... Nf6 {[%clk 0:02:57]} 5. Nf3 {[%clk 0:02:59.6]}
5... Be7 {[%clk 0:02:55]} 6. Bg5 {[%clk 0:02:59.8]} 6... d6 {[%clk 0:02:52.6]}
7. e3 {[%clk 0:02:54]} 7... Bd7 {[%clk 0:02:52.5]} 8. O-O-O {[%clk 0:02:53.7]}
8... Ne5 {[%clk 0:02:42]} 9. Bb5 {[%clk 0:02:45.6]} 9... Nxf3 {[%clk 0:02:34.3]}
10. gxf3 {[%clk 0:02:20.2]} 10... c6 {[%clk 0:02:32.8]} 11. Be2 {[%clk
0:02:16.6]} 11... Qc7 {[%clk 0:02:17.9]} 12. Rhg1 {[%clk 0:02:03.7]} 12... d5
{[%clk 0:02:06.4]} 13. Bf4 {[%clk 0:02:02.2]} 13... Bd6 {[%clk 0:02:04.4]} 14.
Bxd6 {[%clk 0:01:50.3]} 14... Qxd6 {[%clk 0:02:04.9]} 15. Rxg7 {[%clk
0:01:50.8]} 15... Qxh2 {[%clk 0:01:59.5]} 16. f4 {[%clk 0:01:51]} 16... Qh6
{[%clk 0:01:52.7]} 17. Rg5 {[%clk 0:01:49.7]} 17... a5 {[%clk 0:01:49.2]} 18.
Rdg1 {[%clk 0:01:49]} 18... Be6 {[%clk 0:01:31.1]} 19. Qd4 {[%clk 0:01:45.9]}
19... O-O-O {[%clk 0:01:28.7]} 20. Na4 {[%clk 0:01:29.6]} 20... Ne4 {[%clk
0:01:19]} 21. Re5 {[%clk 0:01:20.2]} 21... Rhg8 {[%clk 0:01:11.3]} 22. Rd1
{[%clk 0:01:04.1]} 22... Nxf2 {[%clk 0:01:03]} 23. Qa7 {[%clk 0:01:01.4]} 23...
Nxd1 {[%clk 0:00:52.5]} 24. Nc5 {[%clk 0:01:00.7]} 24... Kc7 {[%clk 0:00:39.4]}
25. Qxb7+ {[%clk 0:00:36.3]} 25... Kd6 {[%clk 0:00:38.8]} 26. Bb5 {[%clk
0:00:23.5]} 26... cxb5 {[%clk 0:00:23.5]} 27. Ne4+ {[%clk 0:00:15.3]} 27... dxe4
{[%clk 0:00:22.7]} 28. Rxb5 {[%clk 0:00:16.2]} 28... Bd7 {[%clk 0:00:15.3]} 29.
Rb6+ {[%clk 0:00:15.2]} 29... Ke7 {[%clk 0:00:15.4]} 30. Qxe4+ {[%clk
0:00:15.3]} 30... Qe6 {[%clk 0:00:14.7]} 31. Rxe6+ {[%clk 0:00:13.5]} 31... Bxe6
{[%clk 0:00:14.9]} 32. Qh1 {[%clk 0:00:09.2]} 32... Nxe3 {[%clk 0:00:13.4]} 33.
Qh4+ {[%clk 0:00:08.8]} 33... Ke8 {[%clk 0:00:13.2]} 34. b3 {[%clk 0:00:09.7]}
34... Rg1+ {[%clk 0:00:12.4]} 35. Kb2 {[%clk 0:00:10.4]} 35... Rg2 {[%clk
0:00:12.8]} 36. Qxh7 {[%clk 0:00:09.8]} 36... Rxc2+ {[%clk 0:00:12.7]} 37. Ka3
{[%clk 0:00:10.7]} 37... Rdd2 {[%clk 0:00:12.1]} 38. Ka4 {[%clk 0:00:10.1]}
38... Rxa2+ {[%clk 0:00:11.9]} 39. Kb5 {[%clk 0:00:10.8]} 39... Rab2 {[%clk
0:00:10.7]} 40. Kc6 {[%clk 0:00:07.4]} 40... Rdc2+ {[%clk 0:00:09.7]} 41. Kd6
{[%clk 0:00:07.1]} 41... Nf5+ {[%clk 0:00:10.4]} 42. Ke5 {[%clk 0:00:07.5]}
42... Ke7 {[%clk 0:00:10.9]} 0-1

[Event "Early-Titled-Tuesday-Blitz-January-30-2024"]
[Site "Chess.com"]
[Date "2024.01.30"]
[Round "10"]
[White "maciek_92"]
[Black "JeFumeDesClopes"]
[Result "1-0"]
[WhiteElo "2806"]
[BlackElo "2592"]
[TimeControl "180+1"]
[EndTime "10:01:58 PST"]
[Termination "maciek_92 won on time"]

1. d4 {[%clk 0:03:00.9]} 1... Nf6 {[%clk 0:02:52.6]} 2. Bg5 {[%clk 0:03:00.4]}
2... c5 {[%clk 0:02:52.5]} 3. d5 {[%clk 0:02:56.2]} 3... g6 {[%clk 0:02:50.1]}
4. Nc3 {[%clk 0:02:49.3]} 4... Bg7 {[%clk 0:02:49.9]} 5. e4 {[%clk 0:02:49.7]}
5... d6 {[%clk 0:02:49.6]} 6. Bc4 {[%clk 0:02:42.9]} 6... O-O {[%clk 0:02:45.1]}
7. Qd2 {[%clk 0:02:42.3]} 7... Nbd7 {[%clk 0:02:39.5]} 8. Nf3 {[%clk 0:02:40]}
8... Ng4 {[%clk 0:02:25.8]} 9. Be2 {[%clk 0:02:36.3]} 9... a6 {[%clk 0:02:15.3]}
10. a4 {[%clk 0:02:34.9]} 10... Qb6 {[%clk 0:02:15.8]} 11. Ra2 {[%clk
0:02:18.9]} 11... Qb4 {[%clk 0:01:58.3]} 12. O-O {[%clk 0:01:46.2]} 12... Re8
{[%clk 0:01:52.7]} 13. h3 {[%clk 0:01:43]} 13... Nge5 {[%clk 0:01:49.5]} 14. Nh2
{[%clk 0:01:36.5]} 14... Nc4 {[%clk 0:01:43]} 15. Bxc4 {[%clk 0:01:35.9]} 15...
Qxc4 {[%clk 0:01:43.8]} 16. Ra3 {[%clk 0:01:33.7]} 16... Qb4 {[%clk 0:01:27.6]}
17. Rb3 {[%clk 0:01:25.8]} 17... Qa5 {[%clk 0:01:27.5]} 18. Bh6 {[%clk
0:01:18.5]} 18... Bh8 {[%clk 0:01:21.1]} 19. Re1 {[%clk 0:01:08.8]} 19... b5
{[%clk 0:01:10]} 20. axb5 {[%clk 0:01:04.5]} 20... axb5 {[%clk 0:01:03.4]} 21.
Nxb5 {[%clk 0:00:49]} 21... Qd8 {[%clk 0:00:32.1]} 22. h4 {[%clk 0:00:41.8]}
22... Ba6 {[%clk 0:00:31]} 23. Na3 {[%clk 0:00:17.1]} 23... Ne5 {[%clk 0:00:26]}
24. h5 {[%clk 0:00:14.6]} 24... Nc4 {[%clk 0:00:22.2]} 25. Nxc4 {[%clk
0:00:14.5]} 25... Bxc4 {[%clk 0:00:23.1]} 26. Rh3 {[%clk 0:00:14.9]} 26... e6
{[%clk 0:00:15.7]} 27. hxg6 {[%clk 0:00:13.5]} 27... hxg6 {[%clk 0:00:16.6]} 28.
b3 {[%clk 0:00:12.6]} 28... Ba6 {[%clk 0:00:14]} 29. Bg5 {[%clk 0:00:12.4]}
29... Bf6 {[%clk 0:00:13.6]} 30. Bxf6 {[%clk 0:00:07.2]} 30... Qxf6 {[%clk
0:00:14.5]} 31. Ng4 {[%clk 0:00:07.8]} 31... Qg7 {[%clk 0:00:14.3]} 32. Qg5
{[%clk 0:00:05.4]} 32... exd5 {[%clk 0:00:10.2]} 33. Nf6+ {[%clk 0:00:05.4]}
33... Kf8 {[%clk 0:00:09.9]} 34. Rh7 {[%clk 0:00:03.5]} 34... Re5 {[%clk
0:00:09.6]} 35. Rxg7 {[%clk 0:00:02.3]} 35... Rxg5 {[%clk 0:00:05.8]} 36. Rg8+
{[%clk 0:00:03.2]} 36... Ke7 {[%clk 0:00:05.6]} 37. Nxd5+ {[%clk 0:00:03.9]}
37... Rxd5 {[%clk 0:00:03.2]} 38. Rxa8 {[%clk 0:00:04.8]} 38... Bb7 {[%clk
0:00:01.1]} 39. exd5+ {[%clk 0:00:05.7]} 39... Kd7 {[%clk 0:00:01.2]} 40. Ra7
{[%clk 0:00:06.6]} 1-0

[Event "Early-Titled-Tuesday-Blitz-January-30-2024"]
[Site "Chess.com"]
[Date "2024.01.30"]
[Round "10"]
[White "Vsevolod_Ovchinnikov"]
[Black "m_ezat"]
[Result "1-0"]
[WhiteElo "2648"]
[BlackElo "2482"]
[TimeControl "180+1"]
[EndTime "10:01:58 PST"]
[Termination "Vsevolod_Ovchinnikov won by checkmate"]

1. g3 {[%clk 0:03:00.9]} 1... d5 {[%clk 0:02:56.7]} 2. Bg2 {[%clk 0:03:01.4]}
2... Bf5 {[%clk 0:02:56]} 3. c4 {[%clk 0:03:01.6]} 3... c6 {[%clk 0:02:55.6]} 4.
Qb3 {[%clk 0:03:00.6]} 4... Nd7 {[%clk 0:02:49.6]} 5. Qxb7 {[%clk 0:02:49.6]}
5... dxc4 {[%clk 0:02:44.3]} 6. Na3 {[%clk 0:02:42]} 6... e6 {[%clk 0:02:39.9]}
7. Nxc4 {[%clk 0:02:39.9]} 7... Ngf6 {[%clk 0:02:39.9]} 8. Nf3 {[%clk
0:02:36.1]} 8... Bc5 {[%clk 0:02:37.4]} 9. O-O {[%clk 0:02:33.8]} 9... O-O
{[%clk 0:02:34]} 10. Qxc6 {[%clk 0:02:28.2]} 10... Rc8 {[%clk 0:02:30]} 11. Qa4
{[%clk 0:02:28.2]} 11... Nb6 {[%clk 0:02:27.2]} 12. Nxb6 {[%clk 0:02:27.9]}
12... Qxb6 {[%clk 0:02:26.2]} 13. d3 {[%clk 0:02:19.4]} 13... Ng4 {[%clk
0:02:26.3]} 14. d4 {[%clk 0:02:15.9]} 14... Be7 {[%clk 0:02:25.5]} 15. h3 {[%clk
0:01:45.9]} 15... Nf6 {[%clk 0:02:24.1]} 16. Ne5 {[%clk 0:01:37.7]} 16... Be4
{[%clk 0:02:24.1]} 17. Nd7 {[%clk 0:01:18.9]} 17... Nxd7 {[%clk 0:02:19.8]} 18.
Bxe4 {[%clk 0:01:17.9]} 18... Nf6 {[%clk 0:02:19.6]} 19. Bf3 {[%clk 0:01:10.4]}
19... Rfd8 {[%clk 0:02:19.3]} 20. e3 {[%clk 0:01:09.4]} 20... h5 {[%clk
0:02:13.6]} 21. Rb1 {[%clk 0:01:01]} 21... h4 {[%clk 0:02:12.7]} 22. g4 {[%clk
0:01:01.4]} 22... Bd6 {[%clk 0:02:06.7]} 23. Bd2 {[%clk 0:00:59.7]} 23... Bb8
{[%clk 0:02:06.3]} 24. Bg2 {[%clk 0:00:38]} 24... Qd6 {[%clk 0:01:55.3]} 25.
Rfc1 {[%clk 0:00:28.8]} 25... Qh2+ {[%clk 0:01:54.2]} 26. Kf1 {[%clk 0:00:29]}
26... Nd5 {[%clk 0:01:53.8]} 27. Rxc8 {[%clk 0:00:25.3]} 27... Rxc8 {[%clk
0:01:53.3]} 28. Rc1 {[%clk 0:00:26]} 28... Rd8 {[%clk 0:01:50.8]} 29. Qa5 {[%clk
0:00:23.7]} 29... Nb6 {[%clk 0:01:45.7]} 30. Qb5 {[%clk 0:00:20.6]} 30... g6
{[%clk 0:01:40.9]} 31. Qg5 {[%clk 0:00:20.1]} 31... Qd6 {[%clk 0:01:33.5]} 32.
Qxh4 {[%clk 0:00:19.9]} 32... Na4 {[%clk 0:01:33.6]} 33. b3 {[%clk 0:00:19.9]}
33... Nb2 {[%clk 0:01:32.7]} 34. Kg1 {[%clk 0:00:18.4]} 34... Re8 {[%clk
0:01:28.3]} 35. Rc2 {[%clk 0:00:17.5]} 35... Nd3 {[%clk 0:01:26.8]} 36. f4
{[%clk 0:00:16]} 36... Nb4 {[%clk 0:01:23.6]} 37. Bxb4 {[%clk 0:00:14.9]} 37...
Qxb4 {[%clk 0:01:22.8]} 38. g5 {[%clk 0:00:15.6]} 38... e5 {[%clk 0:01:19.2]}
39. fxe5 {[%clk 0:00:15.5]} 39... Bxe5 {[%clk 0:01:18.5]} 40. Bd5 {[%clk
0:00:15]} 40... Bg7 {[%clk 0:01:08.2]} 41. Qf2 {[%clk 0:00:14.7]} 41... Rf8
{[%clk 0:01:04]} 42. h4 {[%clk 0:00:14.4]} 42... Qd6 {[%clk 0:01:03.2]} 43. Qf3
{[%clk 0:00:13.8]} 43... Qd7 {[%clk 0:01:00.7]} 44. Rf2 {[%clk 0:00:14.2]} 44...
Kh7 {[%clk 0:00:58.5]} 45. Bxf7 {[%clk 0:00:13.6]} 45... a5 {[%clk 0:00:47.7]}
46. a4 {[%clk 0:00:13.4]} 46... Rc8 {[%clk 0:00:38.7]} 47. Qe4 {[%clk 0:00:11]}
47... Rc6 {[%clk 0:00:30.5]} 48. h5 {[%clk 0:00:10.3]} 48... Qh3 {[%clk
0:00:25]} 49. Bxg6+ {[%clk 0:00:10.2]} 49... Rxg6 {[%clk 0:00:21.3]} 50. hxg6+
{[%clk 0:00:11.1]} 50... Kg8 {[%clk 0:00:21.9]} 51. Qe8+ {[%clk 0:00:11.5]}
51... Bf8 {[%clk 0:00:21.6]} 52. Qf7+ {[%clk 0:00:11.6]} 52... Kh8 {[%clk
0:00:21]} 53. Qxf8# {[%clk 0:00:12.3]} 1-0

[Event "Early-Titled-Tuesday-Blitz-January-30-2024"]
[Site "Chess.com"]
[Date "2024.01.30"]
[Round "10"]
[White "kekic76"]
[Black "deribas12345"]
[Result "1/2-1/2"]
[WhiteElo "2370"]
[BlackElo "2500"]
[TimeControl "180+1"]
[EndTime "10:01:58 PST"]
[Termination "Game drawn by repetition"]

1. e4 {[%clk 0:03:00.9]} 1... e6 {[%clk 0:03:00]} 2. d4 {[%clk 0:02:58.6]} 2...
d5 {[%clk 0:03:00.9]} 3. exd5 {[%clk 0:02:59.1]} 3... exd5 {[%clk 0:03:01.1]} 4.
Bd3 {[%clk 0:02:59.7]} 4... c5 {[%clk 0:03:01.5]} 5. c3 {[%clk 0:02:58.7]} 5...
c4 {[%clk 0:03:01.8]} 6. Be2 {[%clk 0:02:56.9]} 6... Bd6 {[%clk 0:03:02.7]} 7.
Nf3 {[%clk 0:02:55.9]} 7... Ne7 {[%clk 0:03:02.9]} 8. Bg5 {[%clk 0:02:55.9]}
8... f6 {[%clk 0:03:02.4]} 9. Bh4 {[%clk 0:02:56.2]} 9... Nf5 {[%clk 0:03:02.9]}
10. Bg3 {[%clk 0:02:56.2]} 10... Nxg3 {[%clk 0:03:03.3]} 11. hxg3 {[%clk
0:02:56.6]} 11... O-O {[%clk 0:03:04.2]} 12. Nbd2 {[%clk 0:02:56.6]} 12... Re8
{[%clk 0:03:04]} 13. Qc2 {[%clk 0:02:55.4]} 13... g6 {[%clk 0:03:02.9]} 14. Nf1
{[%clk 0:02:55.3]} 14... Bf5 {[%clk 0:03:02.3]} 15. Qd2 {[%clk 0:02:53]} 15...
Qe7 {[%clk 0:03:00.2]} 16. Ne3 {[%clk 0:02:49.6]} 16... Be4 {[%clk 0:02:56.4]}
17. Rh3 {[%clk 0:02:41.7]} 17... Nc6 {[%clk 0:02:51.7]} 18. Kf1 {[%clk
0:02:41.7]} 18... b5 {[%clk 0:02:46.6]} 19. a3 {[%clk 0:02:41]} 19... a5 {[%clk
0:02:45.5]} 20. Kg1 {[%clk 0:02:37.1]} 20... b4 {[%clk 0:02:42.7]} 21. axb4
{[%clk 0:02:35.5]} 21... axb4 {[%clk 0:02:43]} 22. Rxa8 {[%clk 0:02:34]} 22...
Rxa8 {[%clk 0:02:43.9]} 23. Ne1 {[%clk 0:02:20.6]} 23... Ra1 {[%clk 0:02:41.3]}
24. f3 {[%clk 0:02:17.6]} 24... Bd3 {[%clk 0:02:17.7]} 25. Bxd3 {[%clk
0:02:13.8]} 25... cxd3 {[%clk 0:02:18.6]} 26. Kh2 {[%clk 0:02:03.9]} 26... h5
{[%clk 0:01:23.4]} 27. Nxd3 {[%clk 0:01:57.1]} 27... Qe6 {[%clk 0:01:16.7]} 28.
Nf4 {[%clk 0:01:32.6]} 28... Bxf4 {[%clk 0:01:12.2]} 29. gxf4 {[%clk 0:01:33.5]}
29... b3 {[%clk 0:00:58]} 30. Qd3 {[%clk 0:01:22]} 30... Ne7 {[%clk 0:00:57.5]}
31. Rg3 {[%clk 0:01:09.2]} 31... Re1 {[%clk 0:00:50]} 32. Rxg6+ {[%clk 0:01:00]}
32... Kf7 {[%clk 0:00:40.1]} 33. Rh6 {[%clk 0:00:38]} 33... Qxe3 {[%clk
0:00:36.3]} 34. Qh7+ {[%clk 0:00:36.3]} 34... Ke6 {[%clk 0:00:35.3]} 35. f5+
{[%clk 0:00:24.4]} 35... Nxf5 {[%clk 0:00:33.5]} 36. Qg8+ {[%clk 0:00:24.2]}
36... Kd7 {[%clk 0:00:14.9]} 37. Qxd5+ {[%clk 0:00:22.3]} 37... Kc7 {[%clk
0:00:07.5]} 38. Qc5+ {[%clk 0:00:11.5]} 38... Kb7 {[%clk 0:00:07.8]} 39. Qb5+
{[%clk 0:00:08.7]} 39... Kc7 {[%clk 0:00:08]} 40. Qc5+ {[%clk 0:00:08.7]} 40...
Kb7 {[%clk 0:00:08.4]} 41. Qb5+ {[%clk 0:00:07.5]} 41... Ka7 {[%clk 0:00:08.8]}
42. Qa5+ {[%clk 0:00:07.3]} 42... Kb7 {[%clk 0:00:09.3]} 43. Qb5+ {[%clk
0:00:07.7]} 1/2-1/2